bitfinex/quotes_ETHUSD_20251012
["timestamp","ask_amount","ask_price","bid_price","bid_amount"]
[1760302718536,4.78384293,4142.6,4142.1,0.122]
[1760302719037,7.53840093,4142.6,4142.1,0.122]
[1760302719341,10.50789402,4142.6,4142.1,0.122]
[1760302719723,10.50789402,4142.6,4142.1,0.002]
[1760302720045,11.44483222,4142.6,4142.1,0.002]
[1760302720351,36.48662122,4142.6,4142.1,0.002]
[1760302720728,31.84907822,4142.6,4142.1,0.002]
[1760302721430,27.97028422,4142.6,4142.1,0.002]
[1760302721629,25.15006322,4142.6,4142.1,0.002]
[1760302721832,8.25147102,4142.6,4142.1,0.002]
[1760302722246,10.17147102,4142.6,4142.1,0.002]
[1760302722456,22.97685102,4142.6,4142.1,0.002]
[1760302722622,24.36682902,4142.6,4142.1,0.002]
[1760302722820,24.67016722,4142.6,4142.1,0.002]
[1760302723422,36.48662122,4142.6,4142.1,0.002]
[1760302723818,29.45643322,4142.6,4142.1,0.002]
[1760302724030,29.14489022,4142.6,4142.1,0.002]
[1760302724214,26.73094729,4142.6,4140.8,2.3719801]
[1760302724420,0.6559,4142.5,4140.9,0.4572]
[1760302724721,0.6559,4142.5,4141.7,2.41445681]
[1760302724932,1.92,4142.4,4141.6,2.41451923]
[1760302725140,3.06992841,4142.5,4140.9,0.4572]
[1760302725141,2.5759,4142.5,4140.9,0.4572]
[1760302725327,2.41406696,4142.4,4141.3,2.41469831]
[1760302725526,0.74038737,4142.4,4141.9,2.41430468]
[1760302725853,0.4275,4142.4,4142.0,2.41429075]
[1760302726159,0.4275,4142.3,4141.8,2.41440814]
[1760302726328,1.92,4142.8,4140.9,0.4572]
[1760302726651,0.4275,4142.9,4140.9,0.4572]
[1760302726652,0.6621,4142.9,4142.1,2.41423432]
[1760302726854,1.92,4142.8,4141.9,2.41431079]
[1760302727055,1.92,4142.8,4142.0,2.41427655]
[1760302727239,2.5821,4142.9,4142.1,2.41421677]
[1760302727439,3.07588364,4142.9,4142.1,2.41421677]
[1760302727761,8.567715,4142.7,4140.5,0.4572]
[1760302727965,2.684047,4142.5,4140.7,2.583537]
[1760302728256,2.41388818,4142.7,4141.1,2.41481638]
[1760302728257,4.565234,4141.9,4141.1,2.41481638]
[1760302728462,2.41435309,4141.9,4141.0,2.41486636]
[1760302728668,0.4275,4141.8,4141.0,2.41486636]
[1760302728828,0.4275,4141.8,4141.2,2.41475128]
[1760302729157,0.4275,4141.8,4141.1,2.41476484]
[1760302729349,0.4275,4141.8,4141.2,2.41473231]
[1760302729525,0.4275,4141.8,4141.3,2.41465829]
[1760302729724,0.4275,4141.8,4140.3,0.1685]
[1760302729725,7.84156,4142.8,4140.5,2.41516725]
[1760302729926,0.12,4142.5,4141.8,2.41437862]
[1760302730161,0.4275,4142.4,4141.7,2.5344568]
[1760302730331,0.4275,4142.4,4141.8,2.41439831]
[1760302730956,0.4275,4142.4,4141.7,0.12]
[1760302731157,4.55497,4142.3,4141.7,0.12]
[1760302731364,1.92,4142.0,4141.5,0.12]
[1760302731530,2.41442939,4141.8,4141.5,0.12]
[1760302731729,4.33442939,4141.8,4141.5,0.12]
[1760302731958,2.84197761,4141.7,4141.5,0.12]
[1760302732159,2.84197761,4141.7,4135.9,3.13944359]
[1760302732160,8.176243,4141.4,4139.3,2.87304961]
[1760302732363,2.41460429,4141.5,4140.6,2.41506488]
[1760302732526,3.68443,4141.3,4140.6,2.41506488]
[1760302732732,2.3475,4141.2,4140.6,2.41506488]
[1760302732933,0.4275,4141.2,4140.5,2.41513666]
[1760302733769,1.92,4141.2,4140.4,2.41520908]
[1760302733933,0.4275,4141.1,4140.5,2.41516051]
[1760302734134,0.4275,4141.1,4140.5,2.41512515]
[1760302734662,2.241854,4141.7,4139.9,0.003]
[1760302734867,2.8131318,4141.7,4140.8,2.41498631]
[1760302735164,2.41451082,4141.7,4140.8,2.41498631]
[1760302735464,2.41461594,4141.5,4140.6,2.41705074]
[1760302735658,0.4275,4141.4,4140.7,2.41501045]
[1760302735843,0.4275,4141.4,4140.6,2.41709424]
[1760302736236,5.809624,4141.2,4140.6,0.002]
[1760302736433,2.414759,4141.2,4140.6,0.002]
[1760302736659,15.10513067,4140.8,4140.6,0.002]
[1760302736828,10.84168479,4140.7,4140.6,0.002]
[1760302737034,0.4275,4140.7,4140.6,0.002]
[1760302737737,2.3475,4140.7,4140.6,0.002]
[1760302738067,1.1452411,4140.7,4140.6,0.002]
[1760302738261,2.3475,4140.7,4140.6,0.002]
[1760302738633,0.4275,4140.7,4140.6,0.002]
[1760302739735,0.4275,4141.3,4140.7,2.41499646]
[1760302740085,2.41494087,4140.9,4140.6,0.002]
[1760302740290,4.33481794,4141.1,4140.6,0.002]
[1760302741093,2.84255059,4140.7,4140.6,0.002]
[1760302741393,0.4275,4140.7,4140.6,0.002]
[1760302741968,7.969129,4140.7,4140.6,0.002]
[1760302742290,10.23066759,4140.7,4140.6,0.002]
[1760302742491,11.49522837,4140.7,4140.6,0.002]
[1760302742690,16.80137737,4140.7,4140.6,0.002]
[1760302743201,17.75581557,4140.7,4140.6,0.002]
[1760302743382,15.1457251,4140.7,4140.6,0.002]
[1760302743776,16.8395471,4140.7,4140.6,0.002]
[1760302744566,16.7195471,4140.7,4140.6,0.002]
[1760302744766,37.1078151,4140.7,4140.6,0.002]
[1760302744991,2.13916451,4140.7,4140.6,0.002]
[1760302745205,0.4275,4140.7,4140.6,0.002]
[1760302745370,2.84255059,4140.7,4140.6,0.002]
[1760302745571,0.4275,4140.7,4140.6,0.002]
[1760302745964,0.001,4141.5,4140.6,0.002]
[1760302746291,2.41492712,4141.0,4140.6,0.002]
[1760302746466,0.43349271,4140.9,4140.6,0.002]
[1760302746680,3.27593647,4140.9,4140.6,0.002]
[1760302746916,0.4275,4140.8,4140.6,0.002]
[1760302747076,4.33505059,4140.7,4140.6,0.002]
[1760302747394,9.61265759,4140.7,4140.6,0.002]
[1760302747702,11.68194166,4140.7,4140.6,0.002]
[1760302748398,26.51877966,4140.7,4140.6,0.002]
[1760302748971,26.23677966,4140.7,4140.6,0.002]
[1760302749171,25.03176366,4140.7,4140.6,0.002]
[1760302749594,3.98928407,4140.7,4140.6,0.002]
[1760302749793,0.4416,4141.2,4140.6,0.002]
[1760302749999,0.4416,4141.8,4140.6,0.002]
[1760302750401,0.4416,4141.8,4141.4,2.41464239]
[1760302750603,0.4416,4141.8,4140.6,0.002]
[1760302750803,0.4416,4141.8,4140.6,0.24371518]
[1760302751003,0.4416,4141.8,4141.4,2.41464239]
[1760302751324,0.4416,4141.8,4141.3,2.41469859]
[1760302752294,0.001,4142.0,4140.6,0.002]
[1760302752490,0.4416,4141.4,4140.7,2.41505059]
[1760302752691,0.4416,4141.4,4140.6,0.002]
[1760302753204,2.41534921,4142.0,4140.6,0.002]
[1760302753205,0.001,4142.0,4140.6,0.002]
[1760302753507,0.001,4142.0,4141.4,2.41464239]
[1760302753809,0.001,4142.0,4141.4,3.36907881]
[1760302754172,0.001,4142.0,4141.4,4.00267881]
[1760302754577,0.05828645,4143.1,4141.4,4.00267881]
[1760302754578,0.05828645,4143.1,4143.0,2.41370987]
[1760302757705,0.05828645,4143.1,4143.0,2.88520987]
[1760302760233,2.4125518,4145.0,4144.2,2.41297066]
[1760302760534,0.28692518,4144.9,4144.2,2.41297066]
[1760302760738,2.69952992,4144.9,4144.2,2.41297066]
[1760302760908,0.4567,4145.2,4144.4,2.41288941]
[1760302761108,4.261234,4145.1,4144.6,2.41273228]
[1760302761304,5.559734,4145.3,4144.6,2.41273228]
[1760302761507,4.261234,4145.2,4144.6,2.41273228]
[1760302761702,4.261234,4145.2,4144.7,2.41270685]
[1760302761907,0.4542,4145.2,4144.8,2.4126178]
[1760302762103,0.1492,4145.6,4144.2,2.41301095]
[1760302762317,0.001,4145.8,4145.5,2.4122186]
[1760302762521,0.001,4145.8,4145.7,2.41213787]
[1760302762924,0.001,4145.8,4145.7,2.88363787]
[1760302764650,0.001,4145.8,4145.7,2.53213787]
[1760302765244,0.001,4145.8,4145.7,0.5915]
[1760302765437,0.001,4145.8,4145.7,3.00363787]
[1760302767448,0.001,4145.8,4145.7,4.17882388]
[1760302768149,0.001,4145.8,4145.7,2.53213787]
[1760302768348,0.001,4145.8,4145.7,3.00363787]
[1760302768536,0.001,4145.8,4145.7,3.63723787]
[1760302772829,0.0170942,4147.6,4147.5,2.41109101]
[1760302773029,0.0170942,4147.6,4147.5,2.65220011]
[1760302773237,0.0170942,4147.6,4147.5,3.24370011]
[1760302773437,0.0170942,4147.6,4147.5,3.00259101]
[1760302774617,26.15392064,4147.6,4145.8,0.1789]
[1760302774817,4.33120949,4147.3,4146.5,2.41166865]
[1760302775029,2.41126543,4147.2,4145.9,2.41197914]
[1760302775220,1.92,4147.2,4145.8,0.1789]
[1760302775439,16.00278664,4147.6,4145.8,0.1789]
[1760302775440,0.0170942,4147.6,4146.6,2.41158917]
[1760302775642,0.0170942,4147.6,4146.6,0.4715]
[1760302776042,0.0170942,4147.6,4145.8,0.1789]
[1760302776242,4.3311394,4147.5,4146.4,2.41168343]
[1760302776428,0.0170942,4147.6,4146.6,2.41161223]
[1760302776629,0.0170942,4147.6,4147.1,2.41127736]
[1760302777021,0.0170942,4147.6,4146.6,3.04521433]
[1760302777223,0.0170942,4147.6,4147.5,2.41109101]
[1760302777654,0.0170942,4147.6,4147.5,2.88259101]
[1760302779869,0.0170942,4147.6,4146.8,1.07]
[1760302780358,0.0170942,4147.6,4145.5,2.4122489]
[1760302780359,0.0170942,4147.6,4146.9,2.41139798]
[1760302780668,0.0170942,4147.6,4145.5,2.4122489]
[1760302780669,1.92,4147.5,4146.7,2.41151001]
[1760302780878,4.33115177,4147.4,4146.7,2.41151001]
[1760302781073,2.4111002,4147.5,4146.0,0.4364]
[1760302781395,2.4111002,4147.5,4146.1,0.6336]
[1760302781576,2.4111514,4147.4,4146.6,2.41156908]
[1760302782077,2.4111514,4147.4,4146.7,2.41155106]
[1760302782540,1.92,4147.5,4146.8,2.4114696]
[1760302782741,2.41111723,4147.5,4146.8,2.4114696]
[1760302782975,2.41111723,4147.5,4146.7,2.41154146]
[1760302783673,0.0170942,4147.6,4147.5,2.41109101]
[1760302783882,0.0170942,4147.6,4147.5,2.86969101]
[1760302784374,0.0170942,4147.6,4146.9,0.4586]
[1760302784578,0.0170942,4147.6,4147.5,0.12]
[1760302784757,2.42812708,4147.6,4147.5,0.12]
[1760302784953,7.04884102,4147.6,4147.5,0.12]
[1760302785168,2.71780814,4147.6,4145.8,0.6375]
[1760302785376,2.41140076,4147.0,4146.1,2.41185504]
[1760302785577,2.41140076,4147.0,4146.2,2.41179332]
[1760302785772,2.41140076,4147.0,4146.3,2.41178651]
[1760302786072,2.41140076,4147.0,4145.8,0.6375]
[1760302786273,2.41140076,4147.0,4146.2,2.41179022]
[1760302786993,2.41128069,4147.2,4146.5,2.41167]
[1760302787369,2.41132552,4147.1,4146.3,2.41173642]
[1760302787691,0.99999999,4151.1,4146.5,0.6336]
[1760302787991,7.081999,4147.7,4145.8,0.1789]
[1760302788291,2.41145995,4146.9,4146.1,2.41185752]
[1760302788493,2.41145995,4146.9,4145.9,2.41201657]
[1760302788494,2.41139141,4147.0,4146.2,0.22384834]
[1760302788695,2.41151299,4146.8,4146.3,0.22384834]
[1760302788886,1.92,4146.7,4146.4,0.22384834]
[1760302789075,0.4511,4146.7,4145.8,0.002]
[1760302789276,0.4511,4146.7,4145.9,2.63595821]
[1760302789277,1.92,4146.6,4145.9,2.63595821]
[1760302789595,2.41174353,4146.4,4146.0,0.22393693]
[1760302789897,0.001,4148.0,4146.1,0.22393693]
[1760302790061,2.41122462,4147.3,4146.5,2.411617]
[1760302790259,2.41109101,4147.5,4146.6,0.22393693]
[1760302790479,2.41126677,4147.2,4146.4,2.41171868]
[1760302790894,2.41122148,4147.3,4146.3,2.41178846]
[1760302791102,2.41126954,4147.2,4146.4,2.41168423]
[1760302791404,2.4114231,4147.0,4146.2,2.4118356]
[1760302791575,2.4114231,4147.0,4146.3,2.41178375]
[1760302791906,2.4114231,4147.0,4146.2,2.41183839]
[1760302792097,2.4114231,4147.0,4146.3,2.41178621]
[1760302792263,1.92,4146.7,4145.8,0.002]
[1760302792467,2.4117247,4146.5,4145.8,0.002]
[1760302793032,0.3008382,4147.5,4145.8,0.002]
[1760302793190,2.41179264,4146.3,4145.8,0.002]
[1760302793529,2.41186133,4146.2,4145.8,0.002]
[1760302793687,2.3711,4146.6,4145.8,0.002]
[1760302794205,2.86272014,4146.6,4145.8,2.414065]
[1760302794410,1.92,4146.5,4145.8,2.414065]
[1760302794711,0.4511,4146.6,4145.8,0.002]
[1760302795019,1.92,4146.5,4145.8,0.002]
[1760302795192,4.33173182,4146.4,4146.2,0.12]
[1760302795392,2.41178882,4146.3,4146.2,0.12]
[1760302795593,4.78288882,4146.3,4146.2,0.12]
[1760302796451,2.3711,4146.3,4146.2,0.12]
[1760302797120,4.78288882,4146.3,4146.2,0.12]
[1760302797321,2.3711,4146.3,4146.2,0.12]
[1760302797528,4.78288882,4146.3,4146.2,0.12]
[1760302798500,2.3711,4146.3,4146.2,0.12]
[1760302798691,4.78288882,4146.3,4146.2,0.12]
[1760302799093,4.78288882,4146.3,4145.8,0.002]
[1760302799094,2.41202151,4145.9,4145.8,0.002]
[1760302799395,4.59212451,4145.9,4145.8,0.002]
[1760302799590,6.96022451,4145.9,4145.8,0.002]
[1760302799895,4.93542151,4145.9,4145.8,0.002]
[1760302800099,7.83848951,4145.9,4145.8,0.002]
[1760302800303,8.86352898,4145.9,4145.8,0.002]
[1760302800735,25.04082142,4145.9,4145.8,0.002]
[1760302801109,4.93542151,4145.9,4145.8,0.002]
[1760302801310,8.76536851,4145.9,4145.8,0.002]
[1760302801918,8.54169451,4145.9,4145.8,0.002]
[1760302802103,9.77812651,4145.9,4145.8,0.002]
[1760302802436,4.93832151,4145.9,4145.8,0.002]
[1760302803308,1.92,4145.9,4145.8,0.002]
[1760302804143,13.80529876,4145.9,4145.8,0.002]
[1760302805023,16.75041176,4145.9,4145.8,0.002]
[1760302805237,12.02694976,4145.9,4145.8,0.002]
[1760302805606,9.84543176,4145.9,4145.8,0.002]
[1760302806004,6.00511376,4145.9,4145.8,0.002]
[1760302806230,17.32483076,4145.9,4145.8,0.002]
[1760302806536,10.09477676,4145.9,4145.8,0.002]
[1760302806707,9.43327876,4145.9,4145.8,0.002]
[1760302807107,15.74427176,4145.9,4145.8,0.002]
[1760302807307,10.37939376,4145.9,4145.8,0.002]
[1760302808052,15.771026,4145.8,4145.3,1e-08]
[1760302808240,36.94252688,4145.4,4145.3,1e-08]
[1760302808438,36.56652688,4145.4,4145.3,1e-08]
[1760302808740,12.39052123,4145.0,4144.9,0.002]
[1760302809118,2.41369893,4143.1,4142.1,0.4586]
[1760302809318,2.4135351,4143.3,4142.5,2.41399379]
[1760302809520,2.41363897,4143.2,4142.4,2.41405872]
[1760302809715,0.6749,4143.5,4142.4,0.48302403]
[1760302809942,2.41281647,4144.6,4142.6,2.41394293]
[1760302810138,2.41266164,4144.8,4142.8,0.6336]
[1760302810346,2.41266164,4144.8,4143.8,2.41320311]
[1760302810568,2.41287855,4144.5,4143.8,2.41320311]
[1760302810737,2.41290173,4144.4,4143.7,2.41329617]
[1760302810947,2.4130558,4144.2,4143.3,2.41353164]
[1760302811120,2.41313196,4144.0,4143.2,2.41355324]
[1760302811327,1.92,4144.7,4142.3,0.002]
[1760302811328,0.4413,4143.9,4142.3,0.002]
[1760302811556,2.41358772,4143.3,4142.3,2.41608967]
[1760302811726,0.4413,4143.3,4142.3,0.002]
[1760302812269,2.41399988,4142.6,4142.3,0.002]
[1760302812555,2.41395684,4142.6,4142.3,0.002]
[1760302812861,1.92,4142.9,4142.3,0.002]
[1760302813072,4.33405948,4142.4,4142.3,0.002]
[1760302813215,2.112,4142.9,4142.3,0.002]
[1760302813420,1.92,4143.2,4142.3,0.002]
[1760302813620,0.30942481,4144.6,4142.3,0.002]
[1760302813845,0.4413,4144.6,4142.5,2.4140012]
[1760302814032,0.4413,4144.6,4142.7,0.6336]
[1760302814435,2.85408849,4144.6,4143.8,2.41323559]
[1760302814752,2.8540797,4144.6,4143.6,2.41334339]
[1760302814954,0.4413,4144.6,4144.0,2.41312671]
[1760302815151,0.4413,4144.6,4143.9,2.41317014]
[1760302815354,0.2336,4145.0,4144.1,2.41301826]
[1760302815675,0.2336,4145.0,4143.4,2.41346587]
[1760302815676,0.4413,4145.2,4144.4,2.4128525]
[1760302815870,0.4413,4145.2,4142.9,0.6336]
[1760302815871,2.294081,4145.8,4143.1,0.6336]
[1760302816164,0.4413,4145.7,4144.9,2.41259738]
[1760302816335,4.3321981,4145.6,4144.8,2.41265046]
[1760302816663,2.41230301,4145.5,4144.4,2.41283835]
[1760302816832,2.41230301,4145.5,4144.7,2.41270127]
[1760302817022,2.41230301,4145.5,4144.1,0.2185]
[1760302817023,1.92,4145.6,4144.1,2.63151578]
[1760302817223,0.67743,4145.5,4144.2,2.41295646]
[1760302817475,0.67743,4145.5,4143.6,2.41336036]
[1760302817476,4.33244341,4145.2,4143.6,2.41336036]
[1760302817771,2.41244341,4145.2,4144.4,2.41287403]
[1760302817928,2.41250175,4145.1,4144.3,2.41295132]
[1760302818258,2.41237658,4145.3,4143.4,0.4297]
[1760302818417,0.99150616,4145.2,4143.4,0.4297]
[1760302818623,0.99150616,4145.2,4143.0,0.6336]
[1760302819062,0.99150616,4145.2,4142.9,0.4297]
[1760302819063,0.4413,4145.2,4144.6,0.12]
[1760302819755,2.3613,4145.2,4144.6,0.12]
[1760302819953,0.4413,4145.2,4144.6,0.12]
[1760302820136,2.41276303,4144.7,4143.0,0.4297]
[1760302820332,2.3613,4144.6,4143.1,0.28434654]
[1760302820537,2.3613,4144.6,4143.8,2.41321688]
[1760302820736,2.85407898,4144.6,4143.8,2.41321688]
[1760302821257,1.92,4144.5,4143.9,2.41317941]
[1760302822123,1.92,4144.5,4143.3,2.4135351]
[1760302822352,0.4413,4144.6,4143.4,0.26978816]
[1760302822561,0.4413,4144.6,4144.0,2.41309076]
[1760302822761,0.4413,4144.6,4143.9,2.41317909]
[1760302823069,1.92,4144.5,4143.9,2.41317909]
[1760302823291,2.41265088,4144.9,4144.2,2.41300512]
[1760302823634,2.41265088,4144.9,4144.5,0.002]
[1760302823953,0.353,4145.9,4144.5,0.002]
[1760302824161,2.41213842,4145.7,4145.0,2.41249272]
[1760302824529,2.412088,4145.8,4145.1,2.41248279]
[1760302824740,2.41236055,4145.4,4144.6,2.41277807]
[1760302825039,2.41226606,4145.5,4144.8,2.41261406]
[1760302825243,2.41225927,4145.5,4144.5,0.002]
[1760302825447,2.41231543,4145.4,4144.7,2.41268043]
[1760302825664,2.41238439,4145.3,4144.6,2.41277017]
[1760302825860,0.1995,4145.9,4144.7,0.4297]
[1760302826070,0.1995,4145.9,4144.9,2.41260344]
[1760302826253,0.1995,4145.9,4145.0,0.4297]
[1760302826484,0.1995,4145.9,4145.7,2.41208171]
[1760302826657,0.1995,4145.9,4145.6,2.41219606]
[1760302827041,0.1995,4145.9,4145.7,2.41213787]
[1760302827240,0.1995,4145.9,4145.5,2.41221294]
[1760302827464,0.1995,4145.9,4144.5,0.6356]
[1760302827465,0.1995,4145.9,4145.8,2.41207969]
[1760302828768,0.8031,4145.9,4144.5,0.002]
[1760302828946,0.8031,4145.9,4145.3,2.4123287]
[1760302829268,0.1995,4145.9,4144.7,2.41271985]
[1760302829457,0.3707,4145.8,4144.5,0.002]
[1760302829646,2.41236068,4145.4,4144.6,2.41277008]
[1760302830047,2.41237063,4145.3,4145.2,0.12]
[1760302830776,2.41226052,4145.5,4145.2,0.12]
[1760302831075,0.47029605,4145.5,4145.2,0.12]
[1760302831283,2.2907,4145.4,4145.2,0.12]
[1760302831443,2.78307063,4145.3,4145.2,0.12]
[1760302832190,2.41277807,4144.6,4144.5,0.002]
[1760302832636,4.33243544,4145.2,4144.5,0.002]
[1760302832841,2.41267173,4144.8,4144.5,0.002]
[1760302833076,0.3707,4145.1,4144.5,0.002]
[1760302833263,4.33277807,4144.6,4144.5,0.002]
[1760302833650,2.41277807,4144.6,4144.5,0.002]
[1760302833871,2.78347807,4144.6,4144.5,0.002]
[1760302834067,5.41509301,4144.6,4144.5,0.002]
[1760302834245,14.07678001,4144.6,4144.5,0.002]
[1760302835261,10.41050001,4144.6,4144.5,0.002]
[1760302835448,7.48516001,4144.6,4144.5,0.002]
[1760302836184,7.92838401,4144.6,4144.5,0.002]
[1760302837375,12.59713901,4144.6,4144.5,0.002]
[1760302837563,2.41306918,4144.1,4144.0,1e-08]
[1760302837775,26.92753161,4144.1,4144.0,1e-08]
[1760302838087,27.29823161,4144.1,4144.0,1e-08]
[1760302838292,30.23656061,4144.1,4144.0,1e-08]
[1760302839397,43.24051861,4144.1,4144.0,1e-08]
[1760302839774,33.59683861,4144.1,4144.0,1e-08]
[1760302840194,3.0884361,4144.1,4144.0,1e-08]
[1760302840376,0.3707,4144.6,4144.0,1e-08]
[1760302840704,0.3707,4144.7,4144.0,1e-08]
[1760302840911,0.001,4144.6,4144.0,1e-08]
[1760302841090,17.94801018,4144.1,4144.0,1e-08]
[1760302841395,21.08889496,4144.1,4144.0,1e-08]
[1760302841587,23.785099,4143.7,4143.1,0.002]
[1760302841789,7.05608335,4143.2,4143.1,0.002]
[1760302842115,11.75197135,4143.2,4143.1,0.002]
[1760302842402,15.50555199,4143.2,4143.1,0.002]
[1760302842759,8.02935743,4143.2,4143.1,0.002]
[1760302842958,2.5222,4143.2,4143.1,0.002]
[1760302843190,2.41353853,4143.3,4143.1,0.002]
[1760302843191,3.01538866,4143.9,4143.1,0.122]
[1760302843364,2.41340627,4143.6,4143.1,0.122]
[1760302843794,2.41330943,4143.7,4143.1,0.122]
[1760302844295,0.121,4144.6,4143.6,0.12]
[1760302844599,0.3753,4144.5,4143.9,0.12]
[1760302844764,2.41288754,4144.5,4143.7,2.41324458]
[1760302845093,2.41379093,4144.6,4144.1,0.12]
[1760302845308,0.001,4144.6,4144.5,0.12]
[1760302848027,0.001,4144.6,4144.5,2.53283628]
[1760302849116,0.001,4144.6,4144.5,0.12]
[1760302849498,0.001,4144.6,4143.4,3.04702213]
[1760302849499,2.41324758,4143.8,4142.2,2.41412973]
[1760302849826,2.41315089,4144.0,4143.2,2.413538]
[1760302850111,2.1536,4143.9,4142.5,2.41396918]
[1760302850286,2.41359335,4143.2,4142.0,0.4469]
[1760302850483,2.4135386,4143.3,4142.1,0.1789]
[1760302850708,1.92,4143.4,4142.1,0.1789]
[1760302850908,2.2887,4143.3,4142.1,0.1789]
[1760302851310,4.33359335,4143.2,4142.0,0.4469]
[1760302851510,4.70229335,4143.2,4141.9,0.002]
[1760302851716,19.16722335,4143.2,4141.9,0.002]
[1760302851920,12.16640735,4143.2,4141.9,0.002]
[1760302852216,14.62637143,4143.2,4141.9,0.002]
[1760302852813,1.92,4142.7,4141.9,0.002]
[1760302853009,1.92,4142.4,4141.9,0.002]
[1760302853422,2.2887,4142.4,4141.9,0.002]
[1760302853713,4.70275948,4142.4,4141.9,0.002]
[1760302854123,5.41443109,4142.4,4141.9,0.002]
[1760302855910,13.69040509,4142.4,4141.9,0.002]
[1760302856132,14.26356809,4142.4,4141.9,0.002]
[1760302856334,12.28851809,4142.4,4141.9,0.002]
[1760302856645,0.6336,4141.9,4141.5,0.002]
[1760302856849,2.41545893,4140.0,4139.9,0.003]
[1760302857212,4.70065893,4140.0,4139.9,0.003]
[1760302857823,8.45087993,4140.0,4139.9,0.003]
[1760302858038,7.01241293,4140.0,4139.9,0.003]
[1760302858241,7.17821193,4140.0,4139.9,0.003]
[1760302858455,7.83356791,4140.0,4139.9,0.003]
[1760302858610,24.58354991,4140.0,4139.9,0.003]
[1760302858810,23.60769791,4140.0,4139.9,0.003]
[1760302859852,22.49386291,4140.0,4139.9,0.003]
[1760302860054,22.18915891,4140.0,4139.9,0.003]
[1760302860645,28.24587791,4140.0,4139.9,1e-08]
[1760302860846,28.56201113,4140.0,4139.9,1e-08]
[1760302861214,24.35389313,4140.0,4139.9,1e-08]
[1760302861442,24.03775991,4140.0,4139.9,1e-08]
[1760302861857,24.35389313,4140.0,4139.9,1e-08]
[1760302862024,2.41633442,4138.5,4138.4,0.003]
[1760302862224,15.23827842,4138.5,4138.4,0.003]
[1760302862440,5.01616764,4138.5,4138.4,0.003]
[1760302862631,7.97232864,4138.5,4138.4,0.003]
[1760302862837,2.59983322,4138.5,4138.4,0.003]
[1760302863052,6.94101942,4138.5,4138.4,0.003]
[1760302863350,2.2837,4138.5,4138.4,0.003]
[1760302863550,4.70003442,4138.5,4138.4,0.003]
[1760302864049,8.28291042,4138.5,4138.4,0.003]
[1760302864263,8.95264842,4138.5,4138.4,0.003]
[1760302865057,10.91470942,4138.5,4138.4,0.003]
[1760302865259,11.31628738,4138.5,4138.4,0.003]
[1760302865459,10.33560738,4138.5,4138.4,0.003]
[1760302866148,11.36153438,4138.5,4138.4,0.003]
[1760302866351,11.00797838,4138.5,4138.4,0.003]
[1760302866554,11.9577116,4138.5,4138.4,0.003]
[1760302866860,2.4170454,4137.3,4135.8,2.41786398]
[1760302867079,0.3638,4137.2,4135.9,0.7333764]
[1760302867382,0.3638,4137.2,4136.4,2.41755326]
[1760302867534,15.13148595,4136.8,4134.5,0.4469]
[1760302867931,2.2838,4136.7,4134.5,0.4469]
[1760302868086,2.2838,4136.7,4135.7,2.41792528]
[1760302868242,2.41744427,4136.6,4135.7,2.4179464]
[1760302868582,4.0253286,4136.7,4135.0,0.4469]
[1760302868583,2.2838,4136.7,4135.0,0.4469]
[1760302868769,2.78123187,4136.7,4135.6,2.41802124]
[1760302868975,2.78123187,4136.7,4135.9,2.41784519]
[1760302869172,0.3638,4136.7,4135.0,0.4469]
[1760302869375,1.92,4136.6,4135.6,2.41801786]
[1760302869682,0.1208,4136.3,4135.6,0.1208]
[1760302869839,1.92,4136.2,4135.6,0.1208]
[1760302870185,2.0408,4136.3,4135.6,0.1208]
[1760302870489,3.34809576,4136.3,4135.6,0.1208]
[1760302870653,4.33768236,4136.2,4135.6,0.1208]
[1760302870852,0.3638,4136.8,4135.3,2.41820424]
[1760302871176,2.41754455,4136.5,4134.0,0.1633]
[1760302871375,2.03302434,4136.4,4135.3,2.41816679]
[1760302871738,1.92,4137.3,4134.0,0.1633]
[1760302871739,0.3638,4136.3,4134.1,0.4377]
[1760302872020,1.92,4135.9,4134.1,0.4377]
[1760302872224,15.13148595,4135.3,4133.2,0.4377]
[1760302872425,2.2895,4135.2,4132.0,0.1725]
[1760302872590,1.92,4134.5,4132.0,0.1725]
[1760302872791,0.31613322,4135.1,4132.0,0.1725]
[1760302873131,0.99999999,4138.9,4132.0,0.1725]
[1760302873132,0.3695,4135.0,4133.2,2.41943288]
[1760302873336,0.3695,4135.0,4133.1,0.4377]
[1760302873624,0.3695,4135.0,4134.4,2.41872565]
[1760302873790,2.41801232,4135.7,4134.2,0.1633]
[1760302873791,0.3695,4135.7,4134.2,0.1633]
[1760302874125,0.63408123,4135.7,4134.5,2.41862564]
[1760302874419,0.63408123,4135.7,4135.0,2.41837804]
[1760302874626,0.63408123,4135.7,4134.9,2.41843275]
[1760302874992,2.41809694,4135.5,4133.6,0.4377]
[1760302875189,0.88947937,4135.6,4133.6,0.4377]
[1760302875413,2.41839643,4135.0,4133.3,2.41937434]
[1760302875616,0.3695,4134.9,4133.2,0.4377]
[1760302875824,2.7879429,4134.9,4133.2,2.85712905]
[1760302876024,1.92,4134.5,4133.0,0.058577]
[1760302876224,1.92,4134.3,4133.0,0.058577]
[1760302876465,1.92,4133.2,4133.0,0.058577]
[1760302876748,1.92,4133.4,4133.0,0.058577]
[1760302876927,0.3616,4133.1,4133.0,0.058577]
[1760302877516,0.2278,4133.5,4133.0,0.058577]
[1760302877716,0.5918,4134.0,4133.3,2.41937429]
[1760302877916,0.5918,4134.0,4133.4,2.41931291]
[1760302878118,0.5918,4134.0,4133.3,2.41936146]
[1760302878461,0.5918,4134.0,4133.0,2.47812514]
[1760302878664,1.92,4133.5,4133.0,0.058577]
[1760302878861,0.4578,4133.4,4133.0,0.058577]
[1760302879021,2.41949142,4133.1,4133.0,0.058577]